[Event "Titled Tuesday Blitz May 23 Early 2023"]
[White "Danielyan, Vahe"]
[Black "Bryakin, Mikhail"]
[WhiteFideId "13304828"]
[BlackFideId "4165314"]
[WhiteElo "2423"]
[BlackElo "2467"]
[Result "0-1"]
[Round "07"]
[TimeControl "180+2"]
[Date "2023.05.23"]
[WhiteClock "0:00:00"]
[BlackClock "0:00:13"]

1. d4 {[%clk 0:03:00]}  f5 {[%clk 0:02:58]} 2. g3 {[%clk 0:02:58]}  Nf6 {[%clk 0:02:58]} 3. Bg2 {[%clk 0:02:57]}  g6 {[%clk 0:02:59]} 4. Nd2 {[%clk 0:02:56]}  Bg7 {[%clk 0:03:00]} 5. e4 {[%clk 0:02:56]}  d6 {[%clk 0:02:59]} 6. exf5 {[%clk 0:02:38]}  gxf5 {[%clk 0:03:00]} 7. Ngf3 {[%clk 0:02:33]}  O-O {[%clk 0:03:00]} 8. O-O {[%clk 0:02:32]}  Nc6 {[%clk 0:02:56]} 9. Re1 {[%clk 0:02:31]}  e6 {[%clk 0:02:51]} 10. c3 {[%clk 0:02:31]}  Bd7 {[%clk 0:02:50]} 11. Qb3 {[%clk 0:02:27]}  Na5 {[%clk 0:02:48]} 12. Qc2 {[%clk 0:02:27]}  Re8 {[%clk 0:02:43]} 13. Nh4 {[%clk 0:02:25]}  Rb8 {[%clk 0:02:40]} 14. Nb3 {[%clk 0:02:20]}  Nc4 {[%clk 0:02:39]} 15. Bg5 {[%clk 0:02:16]}  h6 {[%clk 0:02:38]} 16. Bf4 {[%clk 0:02:09]}  b5 {[%clk 0:02:36]} 17. Rad1 {[%clk 0:02:08]}  Rb6 {[%clk 0:02:24]} 18. Nc5 {[%clk 0:02:00]}  Bc8 {[%clk 0:02:12]} 19. b3 {[%clk 0:01:54]}  Na5 {[%clk 0:02:10]} 20. Nd3 {[%clk 0:01:39]}  Bb7 {[%clk 0:02:06]} 21. Bxb7 {[%clk 0:01:19]}  Nxb7 {[%clk 0:02:05]} 22. Qe2 {[%clk 0:01:08]}  Qd7 {[%clk 0:01:56]} 23. Qf3 {[%clk 0:01:07]}  Nd8 {[%clk 0:01:49]} 24. Qe3 {[%clk 0:00:54]}  Nd5 {[%clk 0:01:48]} 25. Qd2 {[%clk 0:00:53]}  Kh7 {[%clk 0:01:46]} 26. c4 {[%clk 0:00:49]}  Nxf4 {[%clk 0:01:47]} 27. Nxf4 {[%clk 0:00:49]}  bxc4 {[%clk 0:01:46]} 28. bxc4 {[%clk 0:00:50]}  Qf7 {[%clk 0:01:44]} 29. Qe2 {[%clk 0:00:47]}  Rb4 {[%clk 0:01:40]} 30. a3 {[%clk 0:00:44]}  Rb8 {[%clk 0:01:37]} 31. Rd3 {[%clk 0:00:43]}  Nc6 {[%clk 0:01:35]} 32. Qd1 {[%clk 0:00:18]}  e5 {[%clk 0:01:32]} 33. dxe5 {[%clk 0:00:18]}  Nxe5 {[%clk 0:01:25]} 34. Rd5 {[%clk 0:00:18]}  Rb2 {[%clk 0:00:56]} 35. Re3 {[%clk 0:00:14]}  Reb8 {[%clk 0:00:53]} 36. Qh5 {[%clk 0:00:10]}  Rf8 {[%clk 0:00:23]} 37. Qxf7 {[%clk 0:00:09]}  Rxf7 {[%clk 0:00:24]} 38. c5 {[%clk 0:00:09]}  Ng4 {[%clk 0:00:23]} 39. Rf3 {[%clk 0:00:08]}  Ne5 {[%clk 0:00:19]} 40. Re3 {[%clk 0:00:06]}  Nc4 {[%clk 0:00:16]} 41. Re2 {[%clk 0:00:06]}  Rxe2 {[%clk 0:00:10]} 42. Nxe2 {[%clk 0:00:07]}  Be5 {[%clk 0:00:07]} 43. cxd6 {[%clk 0:00:06]}  Bxd6 {[%clk 0:00:05]} 44. Nxf5 {[%clk 0:00:05]}  Bxa3 {[%clk 0:00:06]} 45. Nfd4 {[%clk 0:00:03]}  Bf8 {[%clk 0:00:05]} 46. Ne6 {[%clk 0:00:03]}  Bd6 {[%clk 0:00:04]} 47. N2d4 {[%clk 0:00:03]}  Ne5 {[%clk 0:00:04]} 48. Nb5 {[%clk 0:00:03]}  Ng4 {[%clk 0:00:03]} 49. Nxd6 {[%clk 0:00:03]}  cxd6 {[%clk 0:00:03]} 50. f4 {[%clk 0:00:03]}  Rb7 {[%clk 0:00:02]} 51. Rxd6 {[%clk 0:00:03]}  Ne3 {[%clk 0:00:03]} 52. Rd7+ {[%clk 0:00:03]}  Rxd7 {[%clk 0:00:03]} 53. Nf8+ {[%clk 0:00:04]}  Kg7 {[%clk 0:00:03]} 54. Nxd7 {[%clk 0:00:05]}  a5 {[%clk 0:00:04]} 55. Nc5 {[%clk 0:00:05]}  Kf6 {[%clk 0:00:04]} 56. Kf2 {[%clk 0:00:06]}  Ng4+ {[%clk 0:00:05]} 57. Kg2 {[%clk 0:00:06]}  Kf5 {[%clk 0:00:05]} 58. h3 {[%clk 0:00:05]}  Ne3+ {[%clk 0:00:06]} 59. Kf3 {[%clk 0:00:06]}  Nc4 {[%clk 0:00:06]} 60. g4+ {[%clk 0:00:07]}  Kf6 {[%clk 0:00:07]} 61. Ke4 {[%clk 0:00:06]}  Nd2+ {[%clk 0:00:07]} 62. Kd5 {[%clk 0:00:06]}  Nf1 {[%clk 0:00:08]} 63. Ne4+ {[%clk 0:00:04]}  Kg7 {[%clk 0:00:07]} 64. Nc3 {[%clk 0:00:03]}  Ne3+ {[%clk 0:00:06]} 65. Ke4 {[%clk 0:00:03]}  Nc2 {[%clk 0:00:06]} 66. h4 {[%clk 0:00:04]}  Nb4 {[%clk 0:00:06]} 67. h5 {[%clk 0:00:04]}  Nc6 {[%clk 0:00:06]} 68. Kf5 {[%clk 0:00:04]}  Nd4+ {[%clk 0:00:06]} 69. Ke5 {[%clk 0:00:04]}  Nf3+ {[%clk 0:00:07]} 70. Ke4 {[%clk 0:00:04]}  Nd2+ {[%clk 0:00:07]} 71. Kd3 {[%clk 0:00:05]}  Nf3 {[%clk 0:00:08]} 72. Ke3 {[%clk 0:00:05]}  Ng1 {[%clk 0:00:08]} 73. g5 {[%clk 0:00:05]}  Nh3 {[%clk 0:00:08]} 74. g6 {[%clk 0:00:05]}  Kf6 {[%clk 0:00:08]} 75. Nd5+ {[%clk 0:00:05]}  Kg7 {[%clk 0:00:08]} 76. Nc3 {[%clk 0:00:05]}  Kf6 {[%clk 0:00:08]} 77. Ke4 {[%clk 0:00:05]}  Nf2+ {[%clk 0:00:09]} 78. Kf3 {[%clk 0:00:06]}  Nd3 {[%clk 0:00:09]} 79. Nd5+ {[%clk 0:00:06]}  Kg7 {[%clk 0:00:10]} 80. f5 {[%clk 0:00:07]}  Ne5+ {[%clk 0:00:09]} 81. Kf4 {[%clk 0:00:06]}  Nd7 {[%clk 0:00:10]} 82. Nc3 {[%clk 0:00:03]}  Nf6 {[%clk 0:00:10]} 83. Ke5 {[%clk 0:00:03]}  Nxh5 {[%clk 0:00:10]} 84. Ke6 {[%clk 0:00:03]}  Nf6 {[%clk 0:00:10]} 85. Nd5 {[%clk 0:00:01]}  Nxd5 {[%clk 0:00:11]} 86. Kxd5 {[%clk 0:00:02]}  Kf6 {[%clk 0:00:12]} 87. Kc5 {[%clk 0:00:02]}  h5 {[%clk 0:00:12]} 88. Kb5 {[%clk 0:00:03]}  h4 {[%clk 0:00:12]} 89. g7 {[%clk 0:00:00]}  Kxg7 {[%clk 0:00:13]} 0-1


[Site "https://www.chess.com"]

[Event "Titled Tuesday Blitz May 23 Early 2023"]
[White "Tristan, Leonardo"]
[Black "Shuvalov, Evgenij"]
[WhiteFideId "113816"]
[BlackFideId "4187237"]
[WhiteElo "2461"]
[BlackElo "2080"]
[Result "1-0"]
[Round "07"]
[TimeControl "180+2"]
[Date "2023.05.23"]
[WhiteClock "0:00:42"]
[BlackClock "0:00:15"]

1. d4 {[%clk 0:03:00]}  Nf6 {[%clk 0:02:54]} 2. Nf3 {[%clk 0:03:00]}  g6 {[%clk 0:02:54]} 3. Bf4 {[%clk 0:03:01]}  Bg7 {[%clk 0:02:54]} 4. e3 {[%clk 0:03:01]}  O-O {[%clk 0:02:54]} 5. Be2 {[%clk 0:03:02]}  d5 {[%clk 0:02:54]} 6. O-O {[%clk 0:03:02]}  b6 {[%clk 0:02:54]} 7. a4 {[%clk 0:02:54]}  c5 {[%clk 0:02:49]} 8. c3 {[%clk 0:02:52]}  Nc6 {[%clk 0:02:48]} 9. h3 {[%clk 0:02:50]}  Bb7 {[%clk 0:02:48]} 10. Nbd2 {[%clk 0:02:50]}  e6 {[%clk 0:02:45]} 11. Qb3 {[%clk 0:02:49]}  Qe7 {[%clk 0:02:41]} 12. Qa3 {[%clk 0:02:43]}  Rfe8 {[%clk 0:02:29]} 13. a5 {[%clk 0:02:29]}  Nd7 {[%clk 0:01:54]} 14. a6 {[%clk 0:02:22]}  Bc8 {[%clk 0:01:54]} 15. Bb5 {[%clk 0:02:22]}  Nd8 {[%clk 0:01:48]} 16. Ne5 {[%clk 0:02:13]}  Bxe5 {[%clk 0:01:42]} 17. Bxe5 {[%clk 0:01:59]}  f6 {[%clk 0:01:38]} 18. Bg3 {[%clk 0:01:58]}  e5 {[%clk 0:01:24]} 19. e4 {[%clk 0:01:49]}  cxd4 {[%clk 0:01:17]} 20. Qxe7 {[%clk 0:01:45]}  Rxe7 {[%clk 0:01:18]} 21. cxd4 {[%clk 0:01:45]}  dxe4 {[%clk 0:01:05]} 22. Nxe4 {[%clk 0:01:39]}  Kg7 {[%clk 0:00:58]} 23. Rfc1 {[%clk 0:01:29]}  Ne6 {[%clk 0:00:51]} 24. Nd6 {[%clk 0:00:55]}  Nxd4 {[%clk 0:00:36]} 25. Rxc8 {[%clk 0:00:54]}  Nxb5 {[%clk 0:00:21]} 26. Rxa8 {[%clk 0:00:54]}  Nxd6 {[%clk 0:00:21]} 27. Rxa7 {[%clk 0:00:53]}  Kf7 {[%clk 0:00:20]} 28. Rxd7 {[%clk 0:00:52]}  Rxd7 {[%clk 0:00:20]} 29. a7 {[%clk 0:00:52]}  Rxa7 {[%clk 0:00:18]} 30. Rxa7+ {[%clk 0:00:52]}  Ke6 {[%clk 0:00:19]} 31. Rxh7 {[%clk 0:00:51]}  Nc4 {[%clk 0:00:19]} 32. Rb7 {[%clk 0:00:49]}  Kd6 {[%clk 0:00:19]} 33. b3 {[%clk 0:00:48]}  Kc6 {[%clk 0:00:19]} 34. Rf7 {[%clk 0:00:47]}  Nd2 {[%clk 0:00:18]} 35. Rxf6+ {[%clk 0:00:47]}  Kc5 {[%clk 0:00:15]} 36. f3 {[%clk 0:00:42]} 1-0


[Site "https://www.chess.com"]

[Event "Titled Tuesday Blitz May 23 Early 2023"]
[White "Gontcharov, Vladislav"]
[Black "Jia, Haoxiang"]
[WhiteFideId "4123492"]
[BlackFideId "8602999"]
[WhiteElo "2420"]
[BlackElo "2681"]
[Result "1-0"]
[Round "07"]
[TimeControl "180+2"]
[Date "2023.05.23"]
[WhiteClock "0:00:28"]
[BlackClock "0:00:48"]

1. d4 {[%clk 0:03:00]}  Nf6 {[%clk 0:02:59]} 2. c4 {[%clk 0:03:00]}  g6 {[%clk 0:03:00]} 3. Nc3 {[%clk 0:03:00]}  Bg7 {[%clk 0:03:01]} 4. Nf3 {[%clk 0:03:00]}  d5 {[%clk 0:03:00]} 5. Bg5 {[%clk 0:02:56]}  Ne4 {[%clk 0:02:58]} 6. cxd5 {[%clk 0:02:55]}  Nxg5 {[%clk 0:02:54]} 7. Nxg5 {[%clk 0:02:55]}  e6 {[%clk 0:02:53]} 8. Nf3 {[%clk 0:02:55]}  exd5 {[%clk 0:02:53]} 9. e3 {[%clk 0:02:56]}  O-O {[%clk 0:02:53]} 10. b4 {[%clk 0:02:48]}  c6 {[%clk 0:02:52]} 11. Rb1 {[%clk 0:02:42]}  Bg4 {[%clk 0:02:52]} 12. Be2 {[%clk 0:02:40]}  b5 {[%clk 0:02:49]} 13. O-O {[%clk 0:02:30]}  a5 {[%clk 0:02:44]} 14. a4 {[%clk 0:02:20]}  axb4 {[%clk 0:02:41]} 15. Rxb4 {[%clk 0:02:19]}  Na6 {[%clk 0:02:39]} 16. Rb1 {[%clk 0:02:16]}  b4 {[%clk 0:02:39]} 17. Na2 {[%clk 0:02:13]}  Qa5 {[%clk 0:02:37]} 18. Bxa6 {[%clk 0:02:10]}  Rxa6 {[%clk 0:02:33]} 19. Rxb4 {[%clk 0:01:57]}  Rfa8 {[%clk 0:02:26]} 20. h3 {[%clk 0:01:53]}  Bxf3 {[%clk 0:02:24]} 21. Qxf3 {[%clk 0:01:52]}  R6a7 {[%clk 0:02:18]} 22. Rfb1 {[%clk 0:01:50]}  Qc7 {[%clk 0:02:07]} 23. Nc3 {[%clk 0:01:46]}  Bf8 {[%clk 0:02:07]} 24. R4b3 {[%clk 0:01:44]}  Bd6 {[%clk 0:02:03]} 25. g3 {[%clk 0:01:43]}  h5 {[%clk 0:01:59]} 26. h4 {[%clk 0:01:34]}  Kg7 {[%clk 0:01:59]} 27. Kg2 {[%clk 0:01:34]}  Qc8 {[%clk 0:01:56]} 28. Rb6 {[%clk 0:01:12]}  Rb8 {[%clk 0:01:51]} 29. Qd1 {[%clk 0:00:54]}  Rxb6 {[%clk 0:01:42]} 30. Rxb6 {[%clk 0:00:54]}  Ra6 {[%clk 0:01:40]} 31. Qb3 {[%clk 0:00:53]}  Bc7 {[%clk 0:01:39]} 32. Rb7 {[%clk 0:00:48]}  Ba5 {[%clk 0:01:35]} 33. Ne2 {[%clk 0:00:46]}  Qf5 {[%clk 0:01:32]} 34. Nf4 {[%clk 0:00:38]}  Qe4+ {[%clk 0:01:33]} 35. Kh2 {[%clk 0:00:38]}  Qf3 {[%clk 0:01:32]} 36. Nh3 {[%clk 0:00:31]}  Be1 {[%clk 0:01:28]} 37. Qc2 {[%clk 0:00:30]}  Kg8 {[%clk 0:01:10]} 38. Rb1 {[%clk 0:00:29]}  Ba5 {[%clk 0:01:10]} 39. Ng5 {[%clk 0:00:29]}  Qg4 {[%clk 0:01:02]} 40. Rb8+ {[%clk 0:00:28]}  Kg7 {[%clk 0:01:02]} 41. Rb7 {[%clk 0:00:29]}  Bd8 {[%clk 0:00:53]} 42. Rxf7+ {[%clk 0:00:29]}  Kg8 {[%clk 0:00:53]} 43. Rf4 {[%clk 0:00:28]}  Qd7 {[%clk 0:00:48]} 44. Qxg6+ {[%clk 0:00:28]} 1-0


[Site "https://www.chess.com"]

[Event "Titled Tuesday Blitz May 23 Early 2023"]
[White "Simonian, Hrair"]
[Black "Ginzburg, Yakov"]
[WhiteFideId "13302337"]
[BlackFideId "4157176"]
[WhiteElo "2447"]
[BlackElo "2305"]
[Result "1-0"]
[Round "07"]
[TimeControl "180+2"]
[Date "2023.05.23"]
[WhiteClock "0:01:44"]
[BlackClock "0:00:07"]

1. e4 {[%clk 0:03:00]}  c5 {[%clk 0:02:58]} 2. Nc3 {[%clk 0:03:01]}  e6 {[%clk 0:02:58]} 3. Nf3 {[%clk 0:03:01]}  Nc6 {[%clk 0:02:57]} 4. Bb5 {[%clk 0:03:01]}  Nd4 {[%clk 0:02:50]} 5. Bc4 {[%clk 0:03:00]}  g6 {[%clk 0:02:48]} 6. Nxd4 {[%clk 0:02:59]}  cxd4 {[%clk 0:02:48]} 7. Nb5 {[%clk 0:02:56]}  Qb6 {[%clk 0:02:42]} 8. c3 {[%clk 0:02:53]}  d5 {[%clk 0:02:17]} 9. exd5 {[%clk 0:02:51]}  exd5 {[%clk 0:02:18]} 10. Qe2+ {[%clk 0:02:51]}  Be6 {[%clk 0:02:03]} 11. Bxd5 {[%clk 0:02:50]}  d3 {[%clk 0:02:00]} 12. Qxd3 {[%clk 0:02:20]}  O-O-O {[%clk 0:01:49]} 13. Qc4+ {[%clk 0:02:15]}  Kb8 {[%clk 0:01:42]} 14. Bxe6 {[%clk 0:02:07]}  fxe6 {[%clk 0:01:21]} 15. d4 {[%clk 0:02:07]}  e5 {[%clk 0:01:10]} 16. Be3 {[%clk 0:02:06]}  a6 {[%clk 0:01:07]} 17. a4 {[%clk 0:01:54]}  axb5 {[%clk 0:01:07]} 18. axb5 {[%clk 0:01:55]}  exd4 {[%clk 0:00:52]} 19. Bxd4 {[%clk 0:01:50]}  Rxd4 {[%clk 0:00:52]} 20. cxd4 {[%clk 0:01:49]}  Nf6 {[%clk 0:00:47]} 21. O-O {[%clk 0:01:49]}  Ne8 {[%clk 0:00:17]} 22. Ra8+ {[%clk 0:01:46]}  Kxa8 {[%clk 0:00:15]} 23. Qc8+ {[%clk 0:01:47]}  Ka7 {[%clk 0:00:15]} 24. Ra1+ {[%clk 0:01:48]}  Qa6 {[%clk 0:00:07]} 25. bxa6 {[%clk 0:01:44]} 1-0


[Site "https://www.chess.com"]

[Event "Titled Tuesday Blitz May 23 Early 2023"]
[White "Lehtosaari, Mauri"]
[Black "MKlose11"]
[WhiteFideId "501999"]
[WhiteElo "2507"]
[BlackElo "2677"]
[Result "0-1"]
[Round "07"]
[TimeControl "180+2"]
[Date "2023.05.23"]
[WhiteClock "0:00:18"]
[BlackClock "0:01:50"]

1. d4 {[%clk 0:02:57]}  Nf6 {[%clk 0:02:58]} 2. Nf3 {[%clk 0:02:53]}  c5 {[%clk 0:02:57]} 3. e3 {[%clk 0:02:45]}  cxd4 {[%clk 0:02:57]} 4. exd4 {[%clk 0:02:46]}  d5 {[%clk 0:02:45]} 5. h3 {[%clk 0:02:35]}  Nc6 {[%clk 0:02:45]} 6. Bd3 {[%clk 0:02:34]}  Nb4 {[%clk 0:02:37]} 7. Be2 {[%clk 0:02:31]}  Bf5 {[%clk 0:02:31]} 8. Na3 {[%clk 0:02:31]}  Rc8 {[%clk 0:02:24]} 9. c3 {[%clk 0:02:19]}  Nc6 {[%clk 0:02:24]} 10. Nc2 {[%clk 0:02:11]}  e6 {[%clk 0:02:24]} 11. Ne3 {[%clk 0:02:10]}  Bg6 {[%clk 0:02:24]} 12. O-O {[%clk 0:02:05]}  Bd6 {[%clk 0:02:24]} 13. b3 {[%clk 0:02:00]}  O-O {[%clk 0:02:22]} 14. Bb2 {[%clk 0:02:01]}  a6 {[%clk 0:02:21]} 15. Rc1 {[%clk 0:02:01]}  Re8 {[%clk 0:02:19]} 16. Re1 {[%clk 0:01:51]}  Qa5 {[%clk 0:02:14]} 17. Bd3 {[%clk 0:01:38]}  Bxd3 {[%clk 0:02:10]} 18. Qxd3 {[%clk 0:01:38]}  Qxa2 {[%clk 0:02:08]} 19. Ra1 {[%clk 0:00:37]}  Qxb2 {[%clk 0:02:02]} 20. Reb1 {[%clk 0:00:37]}  Nb4 {[%clk 0:01:55]} 21. Rxb2 {[%clk 0:00:37]}  Nxd3 {[%clk 0:01:55]} 22. Rc2 {[%clk 0:00:18]}  Nf4 {[%clk 0:01:50]} 0-1


[Site "https://www.chess.com"]

[Event "Titled Tuesday Blitz May 23 Early 2023"]
[White "Begmuratov, Alisher"]
[Black "Garakov, Mikhael"]
[WhiteFideId "14203367"]
[BlackFideId "4169034"]
[WhiteElo "2387"]
[BlackElo "2347"]
[Result "1-0"]
[Round "07"]
[TimeControl "180+2"]
[Date "2023.05.23"]
[WhiteClock "0:01:25"]
[BlackClock "0:00:10"]

1. c4 {[%clk 0:03:00]}  Nf6 {[%clk 0:02:58]} 2. g3 {[%clk 0:03:01]}  g6 {[%clk 0:02:53]} 3. Bg2 {[%clk 0:03:01]}  Bg7 {[%clk 0:02:54]} 4. b3 {[%clk 0:03:01]}  O-O {[%clk 0:02:54]} 5. Bb2 {[%clk 0:03:01]}  c6 {[%clk 0:02:38]} 6. Nf3 {[%clk 0:03:00]}  d5 {[%clk 0:02:37]} 7. O-O {[%clk 0:03:00]}  Bg4 {[%clk 0:02:13]} 8. d3 {[%clk 0:03:00]}  Nbd7 {[%clk 0:02:11]} 9. Nbd2 {[%clk 0:03:00]}  a5 {[%clk 0:02:07]} 10. a3 {[%clk 0:03:00]}  e6 {[%clk 0:02:05]} 11. Ra2 {[%clk 0:02:59]}  Qe7 {[%clk 0:02:04]} 12. Qa1 {[%clk 0:02:58]}  Rfc8 {[%clk 0:02:01]} 13. Rc1 {[%clk 0:02:53]}  b5 {[%clk 0:01:59]} 14. h3 {[%clk 0:02:44]}  Bxf3 {[%clk 0:01:59]} 15. Nxf3 {[%clk 0:02:45]}  Ne8 {[%clk 0:01:49]} 16. Bxg7 {[%clk 0:02:44]}  Nxg7 {[%clk 0:01:49]} 17. cxb5 {[%clk 0:02:30]}  cxb5 {[%clk 0:01:49]} 18. Nd4 {[%clk 0:02:30]}  Nc5 {[%clk 0:01:17]} 19. b4 {[%clk 0:02:14]}  axb4 {[%clk 0:00:49]} 20. axb4 {[%clk 0:02:15]}  Na4 {[%clk 0:00:50]} 21. Nc6 {[%clk 0:02:05]}  Qd6 {[%clk 0:00:28]} 22. Rac2 {[%clk 0:02:05]}  Re8 {[%clk 0:00:29]} 23. Qf6 {[%clk 0:02:01]}  Nf5 {[%clk 0:00:22]} 24. g4 {[%clk 0:01:57]}  Ne7 {[%clk 0:00:22]} 25. Ne5 {[%clk 0:01:49]}  Rf8 {[%clk 0:00:20]} 26. Rc7 {[%clk 0:01:31]}  Rac8 {[%clk 0:00:19]} 27. Rxc8 {[%clk 0:01:27]}  Nxc8 {[%clk 0:00:18]} 28. g5 {[%clk 0:01:27]}  Ne7 {[%clk 0:00:17]} 29. Ng4 {[%clk 0:01:25]}  Nf5 {[%clk 0:00:10]} 30. Nh6+ {[%clk 0:01:25]} 1-0


[Site "https://www.chess.com"]

[Event "Titled Tuesday Blitz May 23 Early 2023"]
[White "Heinemann, Josefine"]
[Black "Korchmar, Vasiliy"]
[WhiteFideId "12900460"]
[BlackFideId "24131750"]
[WhiteElo "2342"]
[BlackElo "2370"]
[Result "1/2-1/2"]
[Round "07"]
[TimeControl "180+2"]
[Date "2023.05.23"]
[WhiteClock "0:00:42"]
[BlackClock "0:00:03"]

1. e4 {[%clk 0:03:00]}  c5 {[%clk 0:02:59]} 2. Nf3 {[%clk 0:02:55]}  d6 {[%clk 0:03:00]} 3. d4 {[%clk 0:02:55]}  cxd4 {[%clk 0:03:01]} 4. Nxd4 {[%clk 0:02:55]}  Nf6 {[%clk 0:03:01]} 5. Nc3 {[%clk 0:02:54]}  Nc6 {[%clk 0:03:02]} 6. Bg5 {[%clk 0:02:52]}  Bd7 {[%clk 0:03:02]} 7. Qd2 {[%clk 0:02:51]}  a6 {[%clk 0:03:02]} 8. O-O-O {[%clk 0:02:51]}  e6 {[%clk 0:03:02]} 9. f4 {[%clk 0:02:49]}  Be7 {[%clk 0:03:02]} 10. Nxc6 {[%clk 0:02:41]}  Bxc6 {[%clk 0:03:01]} 11. Bd3 {[%clk 0:02:42]}  b5 {[%clk 0:03:00]} 12. Kb1 {[%clk 0:02:41]}  b4 {[%clk 0:02:58]} 13. Ne2 {[%clk 0:02:40]}  Nxe4 {[%clk 0:02:56]} 14. Bxe4 {[%clk 0:02:41]}  Bxe4 {[%clk 0:02:57]} 15. Bxe7 {[%clk 0:02:41]}  Qxe7 {[%clk 0:02:57]} 16. Qxd6 {[%clk 0:02:41]}  Bxg2 {[%clk 0:02:34]} 17. Rhg1 {[%clk 0:02:29]}  Bf3 {[%clk 0:02:32]} 18. Qd3 {[%clk 0:02:25]}  Bxe2 {[%clk 0:02:24]} 19. Qxe2 {[%clk 0:02:26]}  O-O {[%clk 0:02:23]} 20. f5 {[%clk 0:02:24]}  Qf6 {[%clk 0:01:21]} 21. fxe6 {[%clk 0:02:21]}  Qxe6 {[%clk 0:01:21]} 22. Qg2 {[%clk 0:02:19]}  g6 {[%clk 0:01:18]} 23. h4 {[%clk 0:02:19]}  h5 {[%clk 0:01:17]} 24. Qg5 {[%clk 0:02:17]}  Kh7 {[%clk 0:01:14]} 25. Rdf1 {[%clk 0:02:13]}  Rae8 {[%clk 0:01:08]} 26. b3 {[%clk 0:02:12]}  Rg8 {[%clk 0:00:49]} 27. Rf6 {[%clk 0:02:08]}  Qe7 {[%clk 0:00:39]} 28. Rgf1 {[%clk 0:02:08]}  Rgf8 {[%clk 0:00:34]} 29. Rg1 {[%clk 0:02:02]}  Rg8 {[%clk 0:00:28]} 30. Rgf1 {[%clk 0:02:02]}  Rg7 {[%clk 0:00:28]} 31. Qf4 {[%clk 0:01:58]}  Rf8 {[%clk 0:00:16]} 32. Rxa6 {[%clk 0:01:57]}  f5 {[%clk 0:00:13]} 33. Rd6 {[%clk 0:01:42]}  Rc8 {[%clk 0:00:13]} 34. Rd4 {[%clk 0:01:36]}  Qe2 {[%clk 0:00:10]} 35. Rc1 {[%clk 0:01:35]}  Rgc7 {[%clk 0:00:11]} 36. Rd2 {[%clk 0:01:27]}  Qb5 {[%clk 0:00:11]} 37. Rg2 {[%clk 0:01:24]}  Qb6 {[%clk 0:00:07]} 38. Rd2 {[%clk 0:01:16]}  Ra7 {[%clk 0:00:07]} 39. Rd6 {[%clk 0:00:58]}  Qa5 {[%clk 0:00:06]} 40. a4 {[%clk 0:00:58]}  bxa3 {[%clk 0:00:06]} 41. Ka2 {[%clk 0:00:54]}  Qc3 {[%clk 0:00:05]} 42. Qd4 {[%clk 0:00:53]}  Qxd4 {[%clk 0:00:05]} 43. Rxd4 {[%clk 0:00:54]}  Rf7 {[%clk 0:00:04]} 44. c4 {[%clk 0:00:51]}  f4 {[%clk 0:00:04]} 45. Kxa3 {[%clk 0:00:50]}  f3 {[%clk 0:00:05]} 46. Rf1 {[%clk 0:00:51]}  f2 {[%clk 0:00:05]} 47. Rd2 {[%clk 0:00:51]}  Rcf8 {[%clk 0:00:05]} 48. c5 {[%clk 0:00:51]}  g5 {[%clk 0:00:05]} 49. hxg5 {[%clk 0:00:49]}  Kg6 {[%clk 0:00:06]} 50. c6 {[%clk 0:00:50]}  Kxg5 {[%clk 0:00:06]} 51. c7 {[%clk 0:00:51]}  Rxc7 {[%clk 0:00:05]} 52. Rdxf2 {[%clk 0:00:51]}  Rxf2 {[%clk 0:00:05]} 53. Rxf2 {[%clk 0:00:52]}  h4 {[%clk 0:00:06]} 54. b4 {[%clk 0:00:51]}  h3 {[%clk 0:00:06]} 55. b5 {[%clk 0:00:52]}  Rc4 {[%clk 0:00:05]} 56. Kb3 {[%clk 0:00:52]}  Re4 {[%clk 0:00:05]} 57. Rb2 {[%clk 0:00:42]}  Kg4 {[%clk 0:00:04]} 58. Kc3 {[%clk 0:00:42]}  Kg3 {[%clk 0:00:04]} 59. b6 {[%clk 0:00:43]}  Re8 {[%clk 0:00:04]} 60. Kc4 {[%clk 0:00:42]}  h2 {[%clk 0:00:04]} 61. Rxh2 {[%clk 0:00:42]}  Kxh2 {[%clk 0:00:03]} 62. Kd5 {[%clk 0:00:42]}  Kg3 {[%clk 0:00:03]} 63. b7 {[%clk 0:00:42]}  Kf4 {[%clk 0:00:03]} 64. Kd6 {[%clk 0:00:42]}  Rb8 {[%clk 0:00:02]} 65. Kc7 {[%clk 0:00:42]}  Rxb7+ {[%clk 0:00:03]} 66. Kxb7 {[%clk 0:00:42]} 1/2-1/2


[Site "https://www.chess.com"]